bitfinex/quotes_SOLUSD_20241111
["timestamp","ask_amount","ask_price","bid_price","bid_amount"]
[1731365072255,20.0,218.26,218.13,6.24956172]
[1731365072434,20.0,218.26,218.14,5.46990102]
[1731365072629,28.56210278,218.26,218.14,5.46990102]
[1731365072834,23.776884,218.28,218.14,5.46990102]
[1731365073350,12.33918523,218.27,218.15,6.24956172]
[1731365073541,15.5539,218.33,218.16,5.46990102]
[1731365073735,23.776884,218.32,218.17,6.24956172]
[1731365074048,23.776884,218.32,218.18,5.46990102]
[1731365074232,18.42092588,218.33,218.18,5.46990102]
[1731365074829,18.42092588,218.33,218.18,11.71946274]
[1731365075250,18.42092588,218.33,218.19,5.86763143]
[1731365075557,34.22236932,218.32,218.2,5.46990102]
[1731365075853,23.776884,218.32,218.2,5.46990102]
[1731365076052,23.776884,218.32,218.21,5.86763143]
[1731365076247,23.776884,218.32,218.22,5.97978991]
[1731365076837,32.48396735,218.32,218.22,5.97978991]
[1731365077157,23.776884,218.32,218.22,5.97978991]
[1731365077365,23.776884,218.3,218.22,5.97978991]
[1731365077851,8.97585888,218.29,218.22,5.97978991]
[1731365078067,23.776884,218.32,218.22,5.97978991]
[1731365078630,23.776884,218.34,218.22,11.84742134]
[1731365078853,23.776884,218.34,218.23,5.86763143]
[1731365079033,23.776884,218.34,218.24,5.97978991]
[1731365079238,23.776884,218.34,218.24,11.84742134]
[1731365079837,23.776884,218.34,218.25,5.86763143]
[1731365080538,8.93106474,218.33,218.25,5.86763143]
[1731365080741,23.776884,218.34,218.25,5.86763143]
[1731365081145,23.776884,218.34,218.24,5.97978991]
[1731365081345,23.776884,218.35,218.24,5.97978991]
[1731365081747,8.56563712,218.34,218.24,5.97978991]
[1731365081957,23.776884,218.35,218.24,5.97978991]
[1731365082254,23.776884,218.35,218.2,5.86763143]
[1731365082255,23.776884,218.35,218.21,5.97978991]
[1731365082559,23.776884,218.35,218.22,5.86763143]
[1731365082763,20.0,218.39,218.23,5.97978991]
[1731365082940,8.99696989,218.38,218.24,5.86763143]
[1731365083130,20.0,218.39,218.25,5.97978991]
[1731365083757,20.0,218.39,218.25,12.30242134]
[1731365084545,20.0,218.39,218.25,5.97978991]
[1731365084866,6.0243,218.4,218.26,6.32263143]
[1731365085058,2.93694574,218.41,218.27,5.97978991]
[1731365085247,15.1921,218.42,218.27,5.97978991]
[1731365086367,23.776884,218.41,218.27,5.97978991]
[1731365098773,23.776884,218.41,218.28,6.40713143]
[1731365117409,6.1585,218.5,218.29,29.75667391]
[1731365117570,6.1585,218.5,218.3,6.40713143]
[1731365117770,6.1585,218.5,218.31,29.75667391]
[1731365117975,6.1585,218.5,218.32,6.40713143]
[1731365118282,6.1585,218.5,218.33,5.97978991]
[1731365118493,6.1585,218.5,218.34,6.40713143]
[1731365118690,20.0,218.49,218.35,5.97978991]
[1731365119291,23.776884,218.48,218.35,12.38692134]
[1731365119469,23.776884,218.49,218.35,12.38692134]
[1731365122890,2.88573872,218.5,218.35,12.38692134]
[1731365123194,15.484,218.6,218.37,23.776884]
[1731365123402,15.384,218.6,218.38,12.38692134]
[1731365123770,9.78009071,218.59,218.38,12.38692134]
[1731365123992,15.384,218.6,218.38,12.38692134]
[1731365124298,20.0,218.59,218.38,12.38692134]
[1731365125187,20.0,218.57,218.38,12.38692134]
[1731365125694,20.0,218.55,218.38,12.38692134]
[1731365126079,23.776884,218.54,218.38,12.38692134]
[1731365126579,15.384,218.6,218.39,20.0]
[1731365126780,23.776884,218.59,218.4,12.38692134]
[1731365128098,20.0,218.58,218.4,12.38692134]
[1731365128395,23.776884,218.57,218.4,12.38692134]
[1731365128598,228.74501383,218.64,218.41,43.776884]
[1731365128778,228.74501383,218.64,218.44,20.0]
[1731365128982,228.74501383,218.64,218.46,20.0]
[1731365129176,228.74501383,218.64,218.47,5.97978991]
[1731365129375,9.48785895,218.63,218.47,5.97978991]
[1731365129582,228.74501383,218.64,218.47,5.97978991]
[1731365129881,23.776884,218.63,218.47,5.97978991]
[1731365130079,228.74501383,218.64,218.47,5.97978991]
[1731365130802,231.53949124,218.64,218.47,5.97978991]
[1731365131207,23.776884,218.63,218.47,5.97978991]
[1731365133791,23.776884,218.63,218.47,12.45047689]
[1731365134189,23.776884,218.63,218.47,5.97978991]
[1731365134384,23.776884,218.63,218.48,6.47068698]
[1731365134593,23.776884,218.63,218.49,5.97978991]
[1731365134998,23.776884,218.63,218.49,12.45047689]
[1731365137601,2.79447741,218.64,218.49,12.45047689]
[1731365137910,23.776884,218.65,218.49,12.45047689]
[1731365140113,23.776884,218.65,218.5,23.776884]
[1731365142807,23.776884,218.65,218.5,29.77834057]
[1731365143320,23.776884,218.71,218.51,20.0]
[1731365143620,23.776884,218.71,218.51,26.00145657]
[1731365147806,23.776884,218.71,218.51,32.47214355]
[1731365150507,23.776884,218.71,218.52,23.776884]
[1731365150725,23.776884,218.71,218.53,20.0]
[1731365151431,23.776884,218.71,218.54,23.776884]
[1731365151730,23.776884,218.71,218.55,20.0]
[1731365154319,23.776884,218.71,218.55,26.47068698]
[1731365155221,23.776884,218.69,218.55,26.47068698]
[1731365155427,23.776884,218.71,218.55,26.47068698]
[1731365158634,23.776884,218.71,218.55,6.47068698]
[1731365163734,23.776884,218.71,218.47,22.82347154]
[1731365163931,23.776884,218.71,218.47,26.00145657]
[1731365164247,23.776884,218.67,218.45,6.11679809]
[1731365164540,23.776884,218.67,218.45,12.11825466]
[1731365164842,23.776884,218.67,218.46,6.00145657]
[1731365165051,23.776884,218.67,218.46,12.11825466]
[1731365165342,23.776884,218.67,218.47,6.11679809]
[1731365165545,23.776884,218.67,218.48,23.776884]
[1731365165846,23.776884,218.67,218.48,29.77834057]
[1731365166233,23.776884,218.67,218.49,20.0]
[1731365166527,23.776884,218.67,218.49,26.00145657]
[1731365167519,23.776884,218.67,218.5,23.776884]
[1731365167839,23.776884,218.67,218.5,29.77834057]
[1731365170242,23.776884,218.67,218.51,20.0]
[1731365171930,23.776884,218.67,218.52,23.776884]
[1731365181762,25.59729898,218.72,218.52,23.776884]
[1731365181946,23.776884,218.71,218.54,23.776884]
[1731365189060,13.30334358,218.7,218.54,23.776884]
[1731365189278,23.776884,218.71,218.54,23.776884]
[1731365190965,23.776884,218.71,218.53,6.11679809]
[1731365191868,23.776884,218.71,218.54,6.00145657]
[1731365192349,23.776884,218.71,218.55,23.776884]
[1731365192554,23.776884,218.71,218.54,6.00145657]
[1731365193156,97.3,218.79,218.55,23.776884]
[1731365193360,23.776884,218.79,218.55,35.89513866]
[1731365193746,26.69192505,218.79,218.55,12.11825466]
[1731365194151,0.1,218.78,218.55,12.11825466]
[1731365194355,31.26242505,218.79,218.55,12.11825466]
[1731365194685,23.776884,218.73,218.55,12.11825466]
[1731365195147,23.776884,218.71,218.55,12.11825466]
[1731365195349,23.776884,218.73,218.55,12.11825466]
[1731365195559,20.0,218.72,218.55,12.11825466]
[1731365195768,20.0,218.74,218.55,12.11825466]
[1731365195769,23.776884,218.71,218.55,12.11825466]
[1731365196289,23.776884,218.73,218.55,12.11825466]
[1731365196663,23.776884,218.71,218.55,12.11825466]
[1731365197373,23.776884,218.72,218.5,6.11679809]
[1731365197567,23.776884,218.7,218.5,12.11825466]
[1731365198685,26.69066349,218.7,218.51,23.776884]
[1731365198886,26.69066349,218.7,218.52,6.00145657]
[1731365205568,23.776884,218.7,218.53,23.776884]
[1731365205975,23.776884,218.7,218.51,23.776884]
[1731365206576,23.776884,218.72,218.51,29.77834057]
[1731365214189,23.776884,218.72,218.54,20.0]
[1731365214578,23.776884,218.72,218.55,23.776884]
[1731365214782,23.776884,218.72,218.56,20.0]
[1731365216999,2.84434444,218.73,218.57,23.776884]
[1731365217190,23.776884,218.75,218.57,23.776884]
[1731365218707,23.776884,218.75,218.59,23.776884]
[1731365219301,23.776884,218.75,218.57,23.776884]
[1731365219627,23.776884,218.75,218.59,23.776884]
[1731365220115,23.776884,218.75,218.52,20.0]
[1731365220615,23.776884,218.75,218.55,23.776884]
[1731365220785,23.776884,218.75,218.57,23.776884]
[1731365221192,23.776884,218.75,218.58,20.0]
[1731365221400,23.776884,218.75,218.57,23.776884]
[1731365221693,23.776884,218.75,218.58,20.0]
[1731365222609,23.776884,218.75,218.52,20.0]
[1731365222914,23.776884,218.75,218.52,26.00145657]
[1731365223096,23.776884,218.75,218.53,20.0]
[1731365223513,23.776884,218.75,218.53,26.11679809]
[1731365223813,23.776884,218.75,218.57,20.0]
[1731365224201,23.776884,218.75,218.58,23.776884]
[1731365224388,23.776884,218.73,218.58,23.776884]
[1731365224593,23.776884,218.75,218.58,23.776884]
[1731365225606,23.776884,218.73,218.53,12.11825466]
[1731365225787,23.776884,218.73,218.55,20.0]
[1731365225989,23.776884,218.71,218.54,23.776884]
[1731365227211,23.776884,218.71,218.55,20.0]
[1731365228412,23.776884,218.71,218.53,6.11679809]
[1731365228714,20.0,218.72,218.44,0.1]
[1731365228715,23.776884,218.69,218.48,6.00145657]
[1731365229211,23.776884,218.69,218.48,12.11825466]
[1731365230216,23.776884,218.69,218.49,20.0]
[1731365231425,23.776884,218.69,218.53,20.0]
[1731365238620,0.1,218.75,218.53,20.0]
[1731365238621,23.776884,218.67,218.53,20.0]
[1731365240910,23.776884,218.67,218.53,26.11679809]
[1731365241627,23.776884,218.67,218.54,6.11679809]
[1731365243132,23.776884,218.67,218.53,20.0]
[1731365244923,23.776884,218.67,218.49,6.11679809]
[1731365245507,9.24949253,218.66,218.49,6.11679809]
[1731365245707,23.776884,218.67,218.49,6.11679809]
[1731365246005,23.776884,218.67,218.5,23.776884]
[1731365246205,23.776884,218.67,218.5,29.77834057]
[1731365247427,22.273,218.68,218.5,29.89368209]
[1731365247604,22.273,218.68,218.51,6.11679809]
[1731365247802,22.273,218.68,218.52,23.776884]
[1731365248101,9.0694344,218.67,218.52,23.776884]
[1731365248301,22.273,218.68,218.52,23.776884]
[1731365250211,22.273,218.68,218.54,23.776884]
[1731365252202,21.8176,218.73,218.54,23.776884]
[1731365252918,21.8176,218.73,218.53,6.00145657]
[1731365252919,21.8176,218.73,218.53,23.776884]
[1731365253725,23.776884,218.72,218.53,23.776884]
[1731365253901,23.776884,218.72,218.53,29.77834057]
[1731365254313,11.13805044,218.71,218.53,29.77834057]
[1731365254518,23.776884,218.72,218.53,29.77834057]
[1731365255708,23.776884,218.72,218.53,23.776884]
[1731365256226,21.8176,218.73,218.53,23.776884]
[1731365257523,9.17234581,218.72,218.53,23.776884]
[1731365257720,21.8176,218.73,218.53,23.776884]
[1731365261206,21.8176,218.73,218.53,29.48945168]
[1731365263504,23.776884,218.72,218.53,5.71256768]
[1731365264539,23.776884,218.72,218.47,5.49568698]
[1731365264843,23.776884,218.72,218.49,23.776884]
[1731365265420,23.776884,218.72,218.49,5.71256768]
[1731365265727,23.776884,218.72,218.5,23.776884]
[1731365266431,23.776884,218.72,218.5,5.71256768]
[1731365266731,23.776884,218.72,218.51,23.776884]
[1731365267123,23.776884,218.72,218.5,5.71256768]
[1731365268417,23.776884,218.72,218.51,23.776884]
[1731365268828,22.0642,218.71,218.51,23.776884]
[1731365269329,23.776884,218.7,218.51,23.776884]
[1731365269834,23.776884,218.68,218.41,4.32206278]
[1731365270010,20.0,218.67,218.44,5.71256768]
[1731365270338,23.776884,218.66,218.44,5.71256768]
[1731365270517,23.776884,218.64,218.44,5.71256768]
[1731365271413,23.776884,218.64,218.41,5.49568698]
[1731365271614,23.776884,218.64,218.42,5.71256768]
[1731365273523,23.776884,218.64,218.43,23.776884]
[1731365274520,23.776884,218.64,218.41,23.776884]
[1731365275923,23.776884,218.64,218.37,23.776884]
[1731365276239,23.776884,218.63,218.37,23.776884]
[1731365277118,22.7191,218.62,218.37,23.776884]
[1731365277318,23.776884,218.61,218.37,23.776884]
[1731365277843,23.776884,218.61,218.37,5.49568698]
[1731365278138,23.776884,218.57,218.32,5.49568698]
[1731365278639,23.776884,218.55,218.32,5.49568698]
[1731365278944,23.776884,218.53,218.32,5.49568698]
[1731365279836,22.209,218.52,218.32,5.49568698]
[1731365280020,23.776884,218.51,218.32,5.49568698]
[1731365280722,22.209,218.52,218.32,5.49568698]
[1731365281447,22.209,218.52,218.33,5.71256768]
[1731365282342,22.209,218.52,218.34,23.776884]
[1731365282652,22.209,218.52,218.36,23.776884]
[1731365282844,22.209,218.52,218.36,29.48945168]
[1731365283429,22.209,218.52,218.36,23.776884]
[1731365285152,22.209,218.52,218.38,23.776884]
[1731365285748,22.209,218.52,218.37,5.71256768]
[1731365286840,22.209,218.52,218.38,23.776884]
[1731365288923,45.643984,218.58,218.38,29.48945168]
[1731365291830,45.643984,218.58,218.39,5.71256768]
[1731365292140,45.643984,218.58,218.4,23.776884]
[1731365293347,9.07419561,218.57,218.4,23.776884]
[1731365293559,45.643984,218.58,218.4,23.776884]
[1731365293853,45.643984,218.58,218.4,29.48945168]
[1731365296133,45.643984,218.58,218.41,5.71256768]
[1731365297540,9.00997756,218.57,218.41,5.71256768]
[1731365297748,45.643984,218.58,218.41,5.71256768]
[1731365298856,21.8671,218.58,218.42,23.776884]
[1731365299032,21.8671,218.58,218.42,5.71256768]
[1731365299239,21.8671,218.58,218.43,23.776884]
[1731365300657,21.8671,218.58,218.43,5.71256768]
[1731365300956,21.8671,218.58,218.44,23.776884]
[1731365308341,21.8671,218.58,218.44,29.48945168]
[1731365308544,21.8588,218.65,218.46,23.776884]
[1731365309862,23.776884,218.64,218.46,23.776884]
[1731365310062,21.8588,218.65,218.46,23.776884]
[1731365310259,21.8588,218.65,218.48,23.776884]
[1731365310442,21.8588,218.65,218.5,23.776884]
[1731365311139,21.8588,218.65,218.5,29.80766543]
[1731365311865,23.776884,218.64,218.5,6.03078143]
[1731365318146,31.96172279,218.64,218.5,6.03078143]
[1731365318451,23.776884,218.64,218.5,6.03078143]
[1731365328154,23.776884,218.64,218.46,23.776884]
[1731365328367,23.776884,218.64,218.48,23.776884]
[1731365328666,23.776884,218.64,218.49,6.03078143]
[1731365329067,8.96527871,218.63,218.49,6.03078143]
[1731365329372,23.776884,218.64,218.49,6.03078143]
[1731365334576,23.776884,218.67,218.5,23.776884]
[1731365334874,23.776884,218.67,218.51,6.03078143]
[1731365335576,23.776884,218.67,218.51,11.74334911]
[1731365336171,23.776884,218.67,218.52,29.48945168]
[1731365337062,6.6291,219.2,218.85,23.776884]
[1731365337261,0.1,219.19,218.86,71.83500135]
[1731365337452,0.1,219.19,218.87,23.876884]
[1731365337662,6.6291,219.2,218.89,23.776884]
[1731365337975,6.7291,219.2,218.91,23.776884]
[1731365338177,6.7291,219.2,218.93,23.776884]
[1731365338376,6.7291,219.2,218.95,23.776884]
[1731365338589,6.7291,219.2,218.97,23.776884]
[1731365338881,6.7291,219.2,218.98,24.25095548]
[1731365339174,20.0,219.19,218.98,24.25095548]
[1731365339680,20.0,219.17,218.99,20.0]
[1731365339861,20.0,219.19,219.0,14.1287427]
[1731365340056,20.0,219.19,219.01,20.0]
[1731365340660,6.8291,219.2,218.99,20.0]
[1731365340958,23.776884,219.19,218.99,20.0]
[1731365341154,9.12777776,219.18,218.99,20.0]
[1731365341467,23.776884,219.16,218.99,20.0]
[1731365341662,23.776884,219.19,218.99,20.0]
[1731365341863,20.0,219.18,218.94,20.0]
[1731365342077,6.6291,219.2,219.01,43.776884]
[1731365342286,6.6291,219.2,219.03,20.0]
[1731365342466,6.6291,219.2,219.04,6.05554611]
[1731365342669,6.6291,219.2,219.05,20.0]
[1731365343273,20.0,219.19,219.06,7.45156308]
[1731365343581,20.0,219.17,219.06,7.45156308]
[1731365343772,23.776884,219.16,219.05,20.0]
[1731365344578,23.776884,219.16,218.9,20.0]
[1731365344770,23.776884,219.16,219.01,20.0]
[1731365345087,23.776884,219.16,218.93,13.74301871]
[1731365345088,23.776884,219.16,219.03,20.0]
[1731365345271,23.776884,219.16,219.05,20.0]
[1731365345475,23.776884,219.16,219.06,7.44809642]
[1731365345676,23.776884,219.18,219.07,20.0]
[1731365345983,23.776884,219.18,219.08,7.44809642]
[1731365346388,23.776884,219.18,219.05,20.0]
[1731365346587,0.1,219.29,219.09,20.0]
[1731365346791,23.776884,219.21,219.1,7.42859642]
[1731365346990,10.77820475,219.2,219.1,7.42859642]
[1731365347171,0.1,219.3,219.1,7.42859642]
[1731365347172,23.776884,219.19,219.1,7.42859642]
[1731365348178,23.776884,219.19,219.09,20.0]
[1731365348377,23.776884,219.19,219.03,20.0]
[1731365348573,23.776884,219.19,219.05,20.0]
[1731365348887,23.776884,219.19,219.06,6.14437001]
[1731365349077,23.776884,219.2,219.07,20.0]
[1731365349386,23.776884,219.2,219.07,26.14437001]
[1731365349969,23.776884,219.2,219.08,6.14437001]
[1731365350169,23.776884,219.2,219.09,20.0]
[1731365351169,23.776884,219.2,219.04,20.0]
[1731365351374,20.0,219.19,219.04,20.0]
[1731365351578,23.776884,219.18,219.05,20.0]
[1731365352194,23.776884,219.18,219.04,6.14437001]
[1731365352367,20.0,219.19,219.04,6.14437001]
[1731365352573,23.776884,219.18,219.04,6.14437001]
[1731365352871,23.776884,219.16,218.99,6.14437001]
[1731365353085,23.776884,219.14,218.98,6.05554611]
[1731365353572,23.776884,219.14,218.93,12.19991612]
[1731365353983,23.776884,219.14,218.93,6.05554611]
[1731365354683,15.392,219.21,218.94,20.0]
[1731365354888,15.392,219.21,218.96,20.0]
[1731365355085,15.392,219.21,218.98,20.0]
[1731365355290,0.1,219.2,218.98,20.0]
[1731365355494,18.23549071,219.21,218.98,20.0]
[1731365356187,20.0,219.2,218.98,26.14437001]
[1731365356584,20.0,219.18,218.98,26.14437001]
[1731365356783,23.776884,219.15,218.98,26.14437001]
[1731365357500,23.776884,219.15,218.98,20.0]
[1731365357686,23.776884,219.15,219.0,20.0]
[1731365357996,20.0,219.2,219.0,20.0]
[1731365358196,20.0,219.2,219.01,6.14437001]
[1731365358394,18.23549071,219.21,219.02,20.0]
[1731365358599,18.23549071,219.21,219.04,20.0]
[1731365358785,18.23549071,219.21,219.04,26.14437001]
[1731365358983,2.84349071,219.21,219.04,26.14437001]
[1731365359296,23.776884,219.2,219.04,26.14437001]
[1731365359593,23.776884,219.2,218.97,5.71964411]
[1731365359594,23.776884,219.2,218.98,20.0]
[1731365359800,23.776884,219.2,219.06,20.0]
[1731365360298,20.0,219.24,219.06,20.0]
[1731365360678,15.7419,219.25,219.06,26.14437001]
[1731365360877,18.59762076,219.25,219.06,20.0]
[1731365361079,18.59762076,219.25,218.99,29.98113922]
[1731365361582,18.59762076,219.25,219.04,0.1]
[1731365361897,2.85572076,219.25,218.99,29.98113922]
[1731365362081,0.1,219.33,219.05,6.20425522]
[1731365362285,0.1,219.22,218.85,22.47932947]
[1731365362511,0.1,219.21,218.86,13.84301871]
[1731365362676,0.2,219.19,218.84,19.02480115]
[1731365362876,20.0,219.17,218.86,5.28178244]
[1731365363178,23.776884,219.16,218.86,5.28178244]
[1731365363400,23.776884,219.16,218.86,19.12480115]
[1731365363577,23.776884,219.16,218.87,5.28178244]
[1731365363778,23.776884,219.16,218.87,6.19490423]
[1731365364086,23.776884,219.16,218.89,23.876884]
[1731365364283,23.776884,219.17,218.91,23.776884]
[1731365364485,23.776884,219.17,218.92,5.28178244]
[1731365364687,23.776884,219.17,218.93,23.776884]
[1731365364896,23.776884,219.17,218.94,5.28178244]
[1731365365083,23.776884,219.17,218.95,23.776884]
[1731365365480,23.776884,219.17,218.95,29.05866644]
[1731365367211,23.776884,219.17,218.96,5.28178244]
[1731365367387,23.776884,219.17,218.97,23.776884]
[1731365369307,23.776884,219.17,218.97,29.05866644]
[1731365370707,23.776884,219.17,218.99,23.776884]
[1731365371127,21.7533,219.24,219.01,23.776884]
[1731365371298,21.7533,219.24,219.02,5.28178244]
[1731365371610,8.79182353,219.23,219.03,23.776884]
[1731365371816,21.7533,219.24,219.03,23.776884]
[1731365372190,21.7533,219.24,219.03,29.05866644]
[1731365372386,21.7533,219.24,219.05,23.776884]
[1731365372615,21.7533,219.24,219.05,5.28178244]
[1731365372814,21.7533,219.24,219.06,23.776884]
[1731365374615,2.85940917,219.28,219.06,29.05866644]
[1731365374810,6.014,219.3,219.08,23.776884]
[1731365375119,6.014,219.3,219.1,23.776884]
[1731365375486,6.014,219.3,219.11,5.28178244]
[1731365375692,6.014,219.3,219.1,23.776884]
[1731365375693,6.014,219.3,219.12,23.776884]
[1731365376025,3.24,219.36,219.15,0.1]
[1731365376194,3.24,219.36,219.16,10.94837467]
[1731365376400,3.24,219.36,219.17,23.876884]
[1731365376700,3.24,219.36,219.19,23.776884]
[1731365377815,2.83986151,219.4,219.19,29.34347623]
[1731365377989,6.81957636,219.43,219.21,23.776884]
[1731365378190,23.776884,219.42,219.21,23.776884]
[1731365378502,23.776884,219.42,219.21,29.34347623]
[1731365378817,6.81957636,219.43,219.22,10.84837467]
[1731365379011,6.81957636,219.43,219.23,23.776884]
[1731365379223,6.81957636,219.43,219.24,5.57422001]
[1731365379395,6.81957636,219.43,219.24,11.14081224]
[1731365379601,9.64887971,219.43,219.25,23.776884]
[1731365379798,9.64887971,219.43,219.26,11.14081224]
[1731365380323,9.64887971,219.43,219.26,11.6463678]
[1731365380523,9.64887971,219.43,219.27,6.07214779]
[1731365380821,6.81957636,219.43,219.28,6.05377557]
[1731365381004,6.81957636,219.43,219.28,12.59825669]
[1731365381202,6.072147,219.42,219.28,6.05377557]
[1731365381508,6.072147,219.42,219.29,6.54448112]
[1731365381707,6.072147,219.42,219.3,6.05377557]
[1731365381901,6.072147,219.42,219.31,6.54448112]
[1731365382100,6.072147,219.42,219.32,6.05377557]
[1731365382397,6.072147,219.42,219.33,6.54448112]
[1731365382596,6.072147,219.42,219.33,12.59825669]
[1731365382803,6.072147,219.42,219.33,6.54448112]
[1731365384405,0.68437636,219.43,219.33,6.54448112]
[1731365384606,0.68437636,219.43,219.34,5.94183112]
[1731365384833,0.68437636,219.43,219.35,6.51006066]
[1731365386713,0.68437636,219.43,219.25,0.1]
[1731365387032,0.68437636,219.43,219.31,6.51006066]
[1731365387227,0.68437636,219.43,219.32,23.776884]
[1731365387428,0.68437636,219.43,219.32,30.28694466]
[1731365387653,0.68437636,219.43,219.32,23.776884]
[1731365387830,0.68437636,219.43,219.33,6.51006066]
[1731365388039,0.68437636,219.43,219.34,23.776884]
[1731365388215,2.8996063,219.49,219.34,23.776884]
[1731365388216,9.0348063,219.49,219.35,6.51006066]
[1731365388611,6.1352,219.49,219.35,6.51006066]
[1731365390232,6.1352,219.56,219.36,29.71871512]
[1731365390438,6.1352,219.56,219.37,6.51006066]
[1731365390740,6.1352,219.56,219.38,29.71871512]
[1731365390926,8.91744508,219.56,219.39,6.14894955]
[1731365391119,20.0,219.55,219.39,6.14894955]
[1731365391307,20.0,219.53,219.37,6.14894955]
[1731365391516,23.776884,219.52,219.33,5.91742001]
[1731365391725,23.776884,219.52,219.34,6.14894955]
[1731365391915,20.0,219.55,219.35,5.91742001]
[1731365392132,23.776884,219.54,219.36,6.14894955]
[1731365392333,20.0,219.55,219.36,6.14894955]
[1731365392334,23.776884,219.51,219.37,5.91742001]
[1731365392537,23.776884,219.51,219.38,6.14894955]
[1731365393632,6.148949,219.52,219.38,6.14894955]
[1731365393829,6.148949,219.52,219.39,5.91742001]
[1731365394031,6.148949,219.52,219.39,12.06636956]
[1731365394231,6.148949,219.52,219.4,6.14894955]
[1731365395337,23.776884,219.51,219.4,6.14894955]
[1731365395742,6.148949,219.52,219.4,6.14894955]
[1731365395917,8.91744508,219.56,219.4,6.14894955]
[1731365396123,8.91744508,219.56,219.37,23.776884]
[1731365396427,8.91744508,219.56,219.37,29.92583355]
[1731365396638,8.91744508,219.56,219.37,23.776884]
[1731365397528,23.776884,219.55,219.36,5.44436446]
[1731365397734,23.776884,219.55,219.3,29.22124846]
[1731365397934,23.776884,219.55,219.3,35.37019801]
[1731365398243,23.776884,219.55,219.32,23.776884]
[1731365398442,23.776884,219.55,219.34,23.776884]
[1731365398638,23.776884,219.55,219.35,5.54258668]
[1731365398949,23.776884,219.55,219.36,23.776884]
[1731365399145,23.776884,219.55,219.37,5.54258668]
[1731365400125,23.776884,219.55,219.34,23.776884]
[1731365400726,23.776884,219.55,219.32,23.776884]
[1731365402847,23.776884,219.55,219.33,20.0]
[1731365403351,23.776884,219.55,219.33,25.54258668]
[1731365404628,23.776884,219.53,219.33,25.54258668]
[1731365405230,23.776884,219.55,219.33,25.54258668]
[1731365406555,23.776884,219.55,219.35,20.0]
[1731365408832,23.776884,219.55,219.33,20.0]
[1731365409239,23.776884,219.55,219.33,25.54258668]
[1731365409740,23.776884,219.55,219.34,5.54258668]
[1731365409950,23.776884,219.55,219.35,20.0]
[1731365411159,23.776884,219.55,219.35,5.54258668]
[1731365411348,23.776884,219.55,219.36,20.0]
[1731365414151,23.776884,219.55,219.36,25.54258668]
[1731365415152,6.1352,219.56,219.38,20.0]
[1731365415440,6.1352,219.56,219.4,20.0]
[1731365415639,6.1352,219.56,219.4,25.54258668]
[1731365417150,6.1352,219.56,219.41,5.54258668]
[1731365417682,6.1352,219.56,219.42,20.0]
[1731365418255,6.1352,219.56,219.42,25.54258668]
[1731365418964,6.1352,219.56,219.43,5.54258668]
[1731365419146,6.1352,219.56,219.44,20.0]
[1731365419763,6.1352,219.56,219.46,20.0]
[1731365419943,6.1352,219.56,219.46,25.54258668]
[1731365420148,6.1352,219.56,219.38,6.14894955]
[1731365420149,6.1352,219.56,219.48,20.0]
[1731365420348,6.1352,219.56,219.48,25.54258668]
[1731365420755,15.5666,219.57,219.48,25.54258668]
[1731365420956,6.0129,219.61,219.48,25.54258668]
[1731365421478,6.0129,219.61,219.5,20.0]
[1731365421780,6.0129,219.61,219.51,6.04525335]
[1731365422750,6.0129,219.61,219.47,6.04525335]
[1731365422951,6.0129,219.61,219.48,20.0]
[1731365423154,6.0129,219.61,219.48,26.04525335]
[1731365423373,6.0129,219.61,219.49,6.04525335]
[1731365423574,6.0129,219.61,219.5,20.0]
[1731365425255,6.0129,219.61,219.52,20.0]
[1731365425476,6.0129,219.61,219.52,26.04525335]
[1731365425781,6.5422,219.66,219.54,20.0]
[1731365425956,6.5422,219.66,219.55,6.04525335]
[1731365426289,16.1671,219.68,219.56,20.0]
[1731365426573,16.1671,219.68,219.49,20.0]